bitfinex/quotes_SOLUSD_20260226
["timestamp","ask_amount","ask_price","bid_price","bid_amount"]
[1772140775301,2.89515526,86.169,86.143,2.93638763]
[1772140777687,2.89515526,86.169,86.145,3.08164397]
[1772140779678,11.60523628,86.168,86.145,3.08164397]
[1772140780076,14.62530321,86.168,86.145,3.08164397]
[1772140781900,3.02006693,86.167,86.145,3.08164397]
[1772140782896,3.02006693,86.178,86.147,2.99844412]
[1772140783308,3.02006693,86.159,86.128,2.99844412]
[1772140783492,3.02006693,86.149,86.111,2.99844412]
[1772140783989,3.3152097,86.15,86.113,2.99844412]
[1772140783990,3.02006693,86.147,86.113,2.99844412]
[1772140786601,3.02006693,86.145,86.102,29.03533018]
[1772140786782,3.02006693,86.139,86.106,2.99844412]
[1772140788495,3.02006693,86.139,86.111,2.99844412]
[1772140789600,3.02006693,86.139,86.113,2.99844412]
[1772140791807,3.02006693,86.137,86.115,2.99844412]
[1772140793987,3.02006693,86.141,86.117,2.99844412]
[1772140794501,3.69383402,86.18,86.116,11.61224395]
[1772140794502,3.02006693,86.159,86.121,2.99844412]
[1772140796105,3.02006693,86.157,86.123,2.99844412]
[1772140797507,3.02006693,86.155,86.125,2.99844412]
[1772140800210,3.02006693,86.161,86.125,2.99844412]
[1772140800511,3.02006693,86.169,86.141,2.99844412]
[1772140801308,3.3152097,86.16,86.133,2.99844412]
[1772140801506,3.02006693,86.159,86.127,2.99844412]
[1772140801806,3.02006693,86.171,86.131,2.99844412]
[1772140802011,3.02006693,86.169,86.131,2.99844412]
[1772140802803,3.02006693,86.167,86.133,2.99844412]
[1772140803905,3.02006693,86.159,86.133,2.99844412]
[1772140804310,3.02006693,86.159,86.127,14.60913569]
[1772140804489,3.02006693,86.17,86.14,3.31585321]
[1772140804693,3.02006693,86.168,86.141,2.99844412]
[1772140805296,3.02006693,86.166,86.14,11.60888157]
[1772140805502,3.02006693,86.159,86.124,2.99844412]
[1772140806519,3.02006693,86.157,86.124,2.99844412]
[1772140807118,3.02006693,86.139,86.109,2.99844412]
[1772140808516,3.31585321,86.14,86.1,3.41585321]
[1772140808517,3.02006693,86.137,86.11,14.61141775]
[1772140809621,3.02006693,86.137,86.111,2.93640898]
[1772140810619,3.17263795,86.135,86.111,2.93640898]
[1772140811099,3.17263795,86.142,86.111,2.93640898]
[1772140811300,3.17263795,86.151,86.113,2.93640898]
[1772140812001,3.17263795,86.157,86.121,2.93640898]
[1772140812609,11.60685268,86.156,86.121,2.93640898]
[1772140812808,3.17263795,86.155,86.121,2.93640898]
[1772140813720,3.17263795,86.155,86.123,2.93640898]
[1772140816120,3.17263795,86.153,86.123,2.93640898]
[1772140817421,3.17263795,86.153,86.125,2.93640898]
[1772140821928,3.17263795,86.151,86.125,2.93640898]
[1772140823932,3.17263795,86.151,86.127,2.93640898]
[1772140825236,3.17263795,86.151,86.126,11.61089566]
[1772140825237,3.17263795,86.149,86.108,2.93640898]
[1772140827436,11.60793053,86.148,86.108,2.93640898]
[1772140827636,3.17263795,86.147,86.11,2.93640898]
[1772140828433,3.17263795,86.147,86.11,3.31585321]
[1772140828638,3.17263795,86.147,86.111,2.93640898]
[1772140829746,3.17263795,86.145,86.111,2.93640898]
[1772140831249,3.17263795,86.145,86.113,2.93640898]
[1772140831549,3.17263795,86.129,86.1,0.1]
[1772140831852,3.17263795,86.127,86.1,0.1]
[1772140832830,3.17263795,86.125,86.1,0.1]
[1772140836042,14.78294067,86.131,86.101,2.93640898]
[1772140836247,3.17263795,86.131,86.101,2.93640898]
[1772140836622,2.94130443,86.136,86.101,2.93640898]
[1772140837452,11.60953456,86.137,86.103,2.92751528]
[1772140838648,2.94130443,86.136,86.103,2.92751528]
[1772140838861,2.94130443,86.129,86.1,0.1]
[1772140839161,2.94130443,86.129,86.101,11.61426696]
[1772140839330,2.94130443,86.129,86.102,2.92751528]
[1772140840031,3.04153301,86.127,86.102,2.92751528]
[1772140842443,11.60894821,86.141,86.104,3.12874585]
[1772140842626,3.31585321,86.2,86.111,3.12874585]
[1772140842627,11.60779579,86.149,86.111,3.12874585]
[1772140842945,3.04153301,86.151,86.111,3.12874585]
[1772140843255,3.04153301,86.151,86.121,3.12874585]
[1772140843755,11.60732105,86.153,86.121,3.12874585]
[1772140844250,3.04153301,86.157,86.121,3.12874585]
[1772140844447,3.04153301,86.169,86.133,3.12874585]
[1772140844933,3.04153301,86.168,86.133,3.12874585]
[1772140846027,3.04153301,86.159,86.133,3.12874585]
[1772140847057,3.04153301,86.157,86.133,3.12874585]
[1772140848954,3.04153301,86.155,86.124,3.12874585]
[1772140849254,46.39024363,86.226,86.131,3.12874585]
[1772140849255,3.04153301,86.168,86.131,3.12874585]
[1772140850449,3.04153301,86.166,86.132,11.61008684]
[1772140850655,3.04153301,86.166,86.133,3.12874585]
[1772140851949,3.04153301,86.164,86.135,3.12874585]
[1772140852654,3.04153301,86.223,86.151,3.12874585]
[1772140852954,11.59769901,86.224,86.161,3.12874585]
[1772140852955,3.04153301,86.199,86.161,3.12874585]
[1772140853353,3.31585321,86.19,86.152,3.12874585]
[1772140853548,3.04153301,86.179,86.152,3.12874585]
[1772140854052,3.31585321,86.18,86.152,3.12874585]
[1772140854053,11.60388962,86.178,86.152,3.12874585]
[1772140854241,3.04153301,86.177,86.152,3.12874585]
[1772140854734,3.04153301,86.177,86.152,14.73611661]
[1772140855956,3.04153301,86.177,86.153,3.12874585]
[1772140857151,11.60270782,86.187,86.153,3.12874585]
[1772140857562,11.60270782,86.187,86.15,3.31585321]
[1772140857563,3.04153301,86.186,86.155,3.12874585]
[1772140859863,3.04153301,86.184,86.157,3.12874585]
[1772140861468,11.60245319,86.189,86.157,3.12874585]
[1772140861646,3.04153301,86.204,86.161,3.12874585]
[1772140861963,3.04153301,86.204,86.171,3.12874585]
[1772140862144,3.04153301,86.202,86.171,3.12874585]
[1772140863057,3.04153301,86.202,86.173,3.12874585]
[1772140864366,11.60079349,86.201,86.174,11.60442824]
[1772140864549,3.04153301,86.206,86.175,3.12874585]
[1772140865767,14.64178497,86.206,86.177,3.12874585]
[1772140866372,3.04153301,86.199,86.166,3.12874585]
[1772140867973,3.04153301,86.197,86.167,3.12874585]
[1772140870174,3.09480722,86.195,86.167,3.12874585]
[1772140870875,3.09480722,86.189,86.157,11.60665315]
[1772140871166,3.09480722,86.189,86.157,14.52930751]
[1772140871469,3.09480722,86.189,86.158,2.92265436]
[1772140873764,11.60254327,86.188,86.16,2.92265436]
[1772140875280,3.09480722,86.196,86.161,2.92265436]
[1772140876373,3.09480722,86.194,86.163,2.92265436]
[1772140877475,11.60187022,86.193,86.163,2.92265436]
[1772140877780,3.09480722,86.192,86.163,2.92265436]
[1772140882576,3.09480722,86.19,86.163,2.92265436]
[1772140884076,3.09480722,86.195,86.163,2.92265436]
[1772140884274,3.09480722,86.195,86.165,2.92265436]
[1772140885481,11.60173561,86.194,86.165,2.92265436]
[1772140885687,3.09480722,86.193,86.165,2.92265436]
[1772140886081,3.31251513,86.18,86.149,2.92265436]
[1772140886273,3.09480722,86.179,86.149,2.92265436]
[1772140888493,3.09480722,86.179,86.151,2.92265436]
[1772140890594,3.09480722,86.179,86.153,2.92265436]
[1772140894599,3.09480722,86.178,86.153,2.92265436]
[1772140894896,3.09480722,86.178,86.155,2.92265436]
[1772140896986,3.09480722,86.178,86.129,3.69383402]
[1772140896987,3.00752394,86.199,86.157,2.91046748]
[1772140897296,3.00752394,86.198,86.157,2.91046748]
[1772140900901,2.86489639,86.196,86.159,2.81447934]
[1772140902701,2.86489639,86.189,86.159,2.81447934]
[1772140904106,2.86489639,86.187,86.161,2.81447934]
[1772140905803,2.86489639,86.179,86.144,2.81447934]
[1772140906308,2.86489639,86.179,86.127,29.02660567]
[1772140906309,2.86489639,86.169,86.101,40.64993437]
[1772140906602,2.86489639,86.165,86.13,3.31251513]
[1772140907808,2.86489639,86.165,86.131,40.63577572]
[1772140908381,2.86489639,86.165,86.132,2.81447934]
[1772140908908,2.86489639,86.165,86.133,40.63483217]
[1772140909104,29.00616896,86.189,86.141,2.81447934]
[1772140909105,2.86489639,86.171,86.141,2.81447934]
[1772140909311,2.86489639,86.176,86.151,2.81447934]
[1772140911011,2.86489639,86.189,86.153,2.81447934]
[1772140911510,2.86489639,86.188,86.153,2.81447934]
[1772140913410,2.86489639,86.186,86.155,2.81447934]
[1772140913708,1.55166129,86.186,86.155,2.81447934]
[1772140915602,1.55166129,86.186,86.157,2.81447934]
[1772140915915,2.86489639,86.191,86.161,2.81447934]
[1772140916118,28.99939423,86.209,86.161,2.81447934]
[1772140916119,2.86489639,86.198,86.161,2.81447934]
[1772140917519,2.86489639,86.198,86.163,2.81447934]
[1772140917817,2.86489639,86.196,86.163,2.81447934]
[1772140920494,2.86489639,86.194,86.165,2.81447934]
[1772140920605,11.60160102,86.195,86.142,2.81447934]
[1772140920606,2.86489639,86.179,86.142,2.81447934]
[1772140920807,2.86489639,86.179,86.142,2.62923503]
[1772140921425,3.31251513,86.18,86.142,2.62923503]
[1772140921627,3.31251513,86.19,86.15,3.31251513]
[1772140921823,3.31251513,86.19,86.151,2.81447934]
[1772140922022,0.28432314,86.194,86.151,2.81447934]
[1772140923335,2.86489639,86.191,86.153,2.81447934]
[1772140925044,3.31251513,86.19,86.153,2.81447934]
[1772140925246,2.86489639,86.189,86.153,2.81447934]
[1772140927247,2.86489639,86.187,86.155,2.81447934]
[1772140929346,3.14921953,86.169,86.129,2.81447934]
[1772140929530,2.86489639,86.149,86.129,2.81447934]
[1772140929726,2.86489639,86.149,86.123,2.88596144]
[1772140930332,2.81145788,86.155,86.123,2.88596144]
[1772140931325,3.31404961,86.15,86.125,2.88596144]
[1772140931526,2.81145788,86.149,86.125,2.88596144]
[1772140932749,2.81145788,86.147,86.125,2.88596144]
[1772140935933,14.41965791,86.146,86.125,2.88596144]
[1772140936136,2.81145788,86.146,86.126,2.88596144]
[1772140936543,2.81145788,86.144,86.113,2.88596144]
[1772140937561,2.81145788,86.149,86.113,2.88596144]
[1772140938257,2.81145788,86.149,86.121,2.88596144]
[1772140939760,2.81145788,86.148,86.121,2.88596144]
[1772140941857,11.60806528,86.147,86.121,2.88596144]
[1772140942067,2.81145788,86.146,86.121,2.88596144]
[1772140945755,2.81145788,86.146,86.123,2.88596144]
[1772140947954,2.81145788,86.146,86.124,11.61116529]
[1772140948156,2.81145788,86.146,86.125,2.88596144]
[1772140951853,3.31404961,86.15,86.127,2.88596144]
[1772140952053,2.81145788,86.149,86.127,2.88596144]
[1772140954638,3.31404961,86.15,86.129,2.88596144]
[1772140954834,2.81145788,86.154,86.129,2.88596144]
[1772140955047,2.81145788,86.158,86.129,2.88596144]
[1772140955863,2.81145788,86.158,86.131,2.88596144]
[1772140956047,11.6059436,86.163,86.131,2.88596144]
[1772140956356,2.81145788,86.181,86.151,2.88596144]
[1772140956735,2.76692822,86.179,86.151,2.88596144]
[1772140957995,2.76692822,86.179,86.153,2.74240632]
[1772140960058,2.90815004,86.177,86.153,2.74240632]
[1772140961562,2.90815004,86.183,86.161,2.89125546]
[1772140962344,2.90815004,86.188,86.162,11.60604442]
[1772140962549,2.90815004,86.188,86.163,2.89125546]
[1772140963161,2.90815004,86.193,86.163,2.89125546]
[1772140963460,2.90815004,86.198,86.171,2.89125546]
[1772140965066,2.90815004,86.196,86.16,3.31404961]
[1772140965362,2.90815004,86.196,86.161,2.89125546]
[1772140965670,2.90815004,86.196,86.171,2.89125546]
[1772140966769,2.90815004,86.196,86.172,2.89125546]
[1772140969570,2.90815004,86.196,86.174,2.89125546]
[1772140971461,2.90815004,86.195,86.174,2.89125546]
[1772140977965,2.90815004,86.195,86.176,2.89125546]
[1772140978371,2.90815004,86.201,86.176,2.89125546]
[1772140978861,2.90815004,86.201,86.175,11.60429358]
[1772140978862,11.59837158,86.219,86.181,2.89125546]
[1772140979046,2.90815004,86.218,86.181,2.89125546]
[1772140980366,14.50584336,86.225,86.191,2.89125546]
[1772140980961,2.90815004,86.224,86.191,2.89125546]
[1772140981471,2.90815004,86.224,86.193,2.89125546]
[1772140981859,2.90815004,86.229,86.201,2.89125546]
[1772140982850,2.90815004,86.228,86.192,2.89125546]
[1772140983050,2.90815004,86.219,86.192,2.89125546]
[1772140983456,3.51404961,86.24,86.18,2.89125546]
[1772140983457,2.90815004,86.209,86.18,2.89125546]
[1772140987571,2.90815004,86.199,86.17,2.89125546]
[1772140989479,2.90815004,86.197,86.171,2.89125546]
[1772140991675,2.71754018,86.195,86.171,2.89125546]
[1772140994578,11.60173561,86.194,86.171,2.89125546]
[1772140994878,2.71754018,86.193,86.171,2.89125546]
[1772140995067,2.71754018,86.189,86.166,2.89064353]
[1772140995859,46.39211929,86.222,86.142,40.63058669]
[1772140995860,2.71754018,86.206,86.171,2.89064353]
[1772140996472,2.71754018,86.206,86.181,2.89064353]
[1772140997077,2.71754018,86.204,86.182,11.60335104]
[1772140997376,2.71754018,86.209,86.183,2.89064353]
[1772140997577,2.71754018,86.218,86.183,2.89064353]
[1772140999787,2.71754018,86.216,86.185,2.89064353]
[1772141003384,11.5989097,86.215,86.186,11.60281252]
[1772141003687,2.71754018,86.214,86.187,2.89064353]
[1772141004602,2.71754018,86.221,86.187,2.89064353]
[1772141004891,2.71754018,86.229,86.191,2.89064353]
[1772141005470,2.71754018,86.229,86.19,3.31321155]
[1772141005471,2.71754018,86.228,86.193,2.89064353]
[1772141006991,2.71754018,86.228,86.192,11.60200482]
[1772141006992,2.71754018,86.219,86.188,2.89064353]
[1772141007181,2.71754018,86.219,86.183,2.89064353]
[1772141007693,2.71754018,86.217,86.183,2.89064353]
[1772141008274,2.71754018,86.217,86.185,2.89064353]
[1772141012300,2.71754018,86.209,86.185,2.89064353]
[1772141015092,2.71754018,86.207,86.181,11.60337223]
[1772141015300,2.71754018,86.207,86.182,2.89064353]
[1772141017190,2.66694475,86.219,86.184,2.70654416]
[1772141017384,2.66694475,86.209,86.179,11.60367943]
[1772141018586,2.66694475,86.207,86.179,11.60367943]
[1772141019502,2.66694475,86.207,86.18,2.70654416]
[1772141021004,2.66694475,86.207,86.181,11.60348568]
[1772141021303,11.60012064,86.206,86.181,11.60348568]
[1772141021506,2.89485061,86.205,86.181,14.31349347]
[1772141022105,2.89485061,86.205,86.181,2.71000779]
[1772141023207,11.60038977,86.204,86.181,2.71000779]
[1772141023398,2.89485061,86.203,86.181,2.71000779]
[1772141025788,2.89485061,86.201,86.176,2.71000779]
[1772141026805,2.89485061,86.199,86.176,2.71000779]
[1772141027005,2.89485061,86.199,86.177,14.31403206]
[1772141027704,2.89485061,86.199,86.178,2.71000779]
[1772141029997,2.89485061,86.199,86.18,2.71000779]
[1772141030989,2.8006694,86.199,86.18,2.71000779]
[1772141031306,2.8006694,86.199,86.181,11.60348568]
[1772141031892,11.60119724,86.198,86.176,2.71000779]
[1772141032910,2.89485061,86.195,86.176,2.71000779]
[1772141035106,14.49658622,86.194,86.176,2.71000779]
[1772141035610,2.89485061,86.193,86.176,2.71000779]
[1772141038212,11.60129422,86.198,86.176,2.71000779]
[1772141038401,2.89485061,86.197,86.176,2.71000779]
[1772141040616,2.89485061,86.189,86.163,2.71000779]
[1772141040995,2.89485061,86.195,86.163,2.71000779]
[1772141041212,2.89485061,86.179,86.141,2.71000779]
[1772141042518,11.60388962,86.178,86.142,11.60873905]
[1772141042713,11.60388962,86.178,86.143,2.71000779]
[1772141042923,14.49874023,86.178,86.143,2.71000779]
[1772141043214,2.89485061,86.177,86.143,2.71000779]
[1772141043416,2.89485061,86.149,86.124,2.71000779]
[1772141043597,6.20806216,86.16,86.124,2.71000779]
[1772141043804,2.89485061,86.159,86.124,2.71000779]
[1772141045122,2.89485061,86.159,86.126,2.71000779]
[1772141045417,6.20806216,86.19,86.151,2.71000779]
[1772141045616,2.89485061,86.189,86.151,2.71000779]
[1772141046418,2.89485061,86.179,86.151,2.71000779]
[1772141048448,2.89485061,86.19,86.152,2.71000779]
[1772141048651,2.89485061,86.189,86.152,2.71000779]
[1772141050434,14.4406615,86.188,86.154,2.89638593]
[1772141050636,2.83811823,86.187,86.154,2.89638593]
[1772141054150,3.31444202,86.18,86.156,2.89638593]
[1772141054330,2.83811823,86.179,86.156,2.89638593]
[1772141055356,2.83811823,86.179,86.149,2.89638593]
[1772141056138,2.83811823,86.177,86.149,2.89638593]
[1772141056333,2.83811823,86.177,86.141,29.02216543]
[1772141056334,2.83811823,86.177,86.151,2.89638593]
[1772141058758,2.83811823,86.177,86.153,2.89638593]
[1772141061544,2.83811823,86.177,86.155,2.89638593]
[1772141063469,3.31444202,86.19,86.155,2.89638593]
[1772141063470,2.83811823,86.188,86.155,2.89638593]
[1772141063865,14.44079612,86.187,86.157,2.89638593]
[1772141064846,2.83811823,86.194,86.157,2.89638593]
[1772141065657,6.15256025,86.19,86.157,2.89638593]
[1772141065858,11.60240866,86.189,86.158,11.60658325]
[1772141067368,11.60240866,86.189,86.159,2.89638593]
[1772141068463,2.83811823,86.195,86.161,2.89638593]
[1772141069269,11.60137496,86.197,86.161,2.89638593]
[1772141069468,14.43949319,86.197,86.163,2.89638593]
[1772141070771,14.43949319,86.197,86.165,2.89638593]
[1772141071669,2.83811823,86.196,86.165,2.89638593]
[1772141076691,2.79806652,86.194,86.167,2.69471209]
[1772141079080,11.60112491,86.199,86.169,2.69471209]
[1772141079379,2.79806652,86.201,86.169,2.69471209]
[1772141080582,2.79806652,86.201,86.171,2.78904689]
[1772141082180,2.6388333,86.214,86.174,2.78904689]
[1772141082367,0.2,86.24,86.173,2.78904689]
[1772141082368,2.6388333,86.209,86.173,2.78904689]
[1772141083588,2.6388333,86.199,86.173,2.78904689]
[1772141088391,2.6388333,86.197,86.173,2.78904689]
[1772141090296,2.6388333,86.197,86.175,2.78904689]
[1772141090880,11.60005019,86.207,86.177,2.78904689]
[1772141091195,2.6388333,86.206,86.177,2.78904689]
[1772141092898,2.6388333,86.204,86.179,2.78904689]
[1772141095496,2.6388333,86.189,86.162,2.78904689]
[1772141097800,2.6388333,86.189,86.164,2.78904689]
[1772141098000,2.6388333,86.214,86.167,3.07337003]
[1772141098197,2.6388333,86.214,86.181,2.78904689]
[1772141098896,2.6388333,86.209,86.181,2.78904689]
[1772141102005,2.6388333,86.219,86.183,2.78904689]
[1772141102896,2.6388333,86.219,86.182,11.60335104]
[1772141102897,2.6388333,86.226,86.191,2.78904689]
[1772141103295,2.6388333,86.225,86.191,2.78904689]
[1772141105183,2.6388333,86.225,86.193,2.78904689]
[1772141107004,2.6388333,86.223,86.192,11.60200482]
[1772141107184,2.6388333,86.219,86.194,11.60173561]
[1772141107385,2.6388333,86.219,86.195,2.78904689]
[1772141108811,11.59722967,86.228,86.195,2.78904689]
[1772141108812,2.6388333,86.224,86.195,2.78904689]
[1772141109611,11.59656015,86.233,86.201,2.61436889]
[1772141109794,3.51444202,86.24,86.196,11.60146642]
[1772141109795,0.2,86.24,86.211,2.61436889]
[1772141111190,0.2,86.24,86.221,2.61436889]
[1772141113815,0.2,86.24,86.223,2.61436889]
[1772141115911,3.30893333,86.26,86.225,2.61436889]
[1772141116103,11.59319704,86.258,86.225,2.61436889]
[1772141116402,14.22389133,86.258,86.225,2.61436889]
[1772141117314,14.22389133,86.258,86.227,2.61436889]
[1772141117813,2.63069429,86.254,86.227,2.61436889]
[1772141118025,2.83069429,86.27,86.241,2.61436889]
[1772141118199,2.63069429,86.268,86.241,2.61436889]
[1772141119814,2.63069429,86.266,86.241,2.61436889]
[1772141120024,2.63069429,86.266,86.219,3.69383402]
[1772141120025,2.63069429,86.259,86.229,2.61436889]
[1772141121722,2.63069429,86.257,86.229,2.61436889]
[1772141122520,11.5933964,86.256,86.231,2.61436889]
[1772141122725,2.63069429,86.255,86.231,2.61436889]
[1772141123246,2.63069429,86.249,86.22,2.61436889]
[1772141123631,2.63069429,86.239,86.214,2.61436889]
[1772141125555,2.63069429,86.237,86.208,2.61436889]
[1772141125733,2.63069429,86.237,86.201,11.60079349]
[1772141125734,2.63069429,86.237,86.202,2.61436889]
[1772141125931,2.63069429,86.229,86.197,14.21562762]
[1772141126240,2.63069429,86.229,86.198,2.61436889]
[1772141126745,2.63069429,86.229,86.197,11.60125873]
[1772141127159,11.59665468,86.232,86.201,2.61436889]
[1772141127368,14.22734897,86.232,86.201,2.61436889]
[1772141127665,2.63069429,86.231,86.201,2.61436889]
[1772141128366,2.63069429,86.231,86.203,2.61436889]
[1772141129260,2.63069429,86.231,86.204,11.60038977]
[1772141129466,2.63069429,86.229,86.205,2.61436889]
[1772141129867,2.63069429,86.239,86.205,2.61436889]
[1772141130046,2.63069429,86.238,86.205,2.61436889]
[1772141132770,2.63069429,86.236,86.207,2.61436889]
[1772141134269,2.63069429,86.236,86.209,2.61436889]
[1772141136256,2.63069429,86.236,86.21,11.59958241]
[1772141136573,2.63069429,86.236,86.211,2.67247574]
[1772141138273,2.74790977,86.219,86.199,14.27350036]
[1772141138575,2.74790977,86.219,86.2,2.67247574]
[1772141139350,2.74790977,86.219,86.185,27.67976195]
[1772141141371,2.74790977,86.219,86.186,2.60574629]
[1772141143976,2.74790977,86.219,86.185,27.67976195]
[1772141143977,2.74790977,86.219,86.188,2.60574629]
[1772141149785,2.74790977,86.219,86.19,2.60574629]
[1772141153689,2.76199261,86.217,86.185,2.60574629]
[1772141155581,2.76199261,86.215,86.187,2.60574629]
[1772141157090,2.76199261,86.209,86.167,2.60574629]
[1772141157279,2.76199261,86.199,86.167,2.60574629]
[1772141158097,11.60106265,86.199,86.168,2.60574629]
[1772141159391,11.60106265,86.199,86.17,2.60574629]
[1772141159985,2.76199261,86.198,86.169,11.6051016]
[1772141160197,2.76199261,86.198,86.17,2.60574629]
[1772141161689,2.76199261,86.196,86.171,14.21057854]
[1772141161993,2.76199261,86.196,86.171,2.60574629]
[1772141163081,3.30893333,86.19,86.171,2.60574629]
[1772141163381,2.76199261,86.189,86.171,2.60574629]
[1772141163581,2.76199261,86.189,86.171,14.21057854]
[1772141164789,2.76199261,86.189,86.166,2.60574629]
[1772141167376,2.76199261,86.189,86.167,14.21111725]
[1772141167576,2.76199261,86.189,86.168,2.60574629]
[1772141169370,2.76199261,86.189,86.169,11.6051016]
[1772141169576,2.76199261,86.189,86.169,14.21084789]
[1772141169887,2.76199261,86.189,86.17,2.57528587]
[1772141172294,11.60183438,86.194,86.172,2.57528587]
[1772141172295,2.79373396,86.194,86.172,2.57528587]
[1772141172681,2.79373396,86.201,86.172,2.57528587]
[1772141173279,2.79373396,86.199,86.172,2.57528587]
[1772141179294,2.79373396,86.199,86.174,2.57528587]
[1772141184904,2.79373396,86.199,86.175,11.60429358]
[1772141185098,2.79373396,86.212,86.181,2.57528587]
[1772141190805,2.79373396,86.212,86.183,2.57528587]
[1772141196615,2.79373396,86.212,86.185,2.63196551]
[1772141200218,2.79373396,86.212,86.187,2.71585058]
[1772141201707,2.65320221,86.209,86.187,2.71585058]
[1772141202401,2.65320221,86.209,86.189,2.71585058]
[1772141203420,2.65320221,86.219,86.189,2.71585058]
[1772141204822,14.25157379,86.219,86.189,2.71585058]
[1772141205009,14.25157379,86.219,86.17,58.02456075]
[1772141205010,2.65320221,86.209,86.17,2.71585058]
[1772141205204,2.65320221,86.199,86.171,2.71585058]
[1772141206527,2.65320221,86.199,86.173,2.71585058]
[1772141210416,2.65320221,86.199,86.175,2.71585058]
[1772141211535,2.65320221,86.198,86.175,2.71585058]
[1772141211834,2.65320221,86.196,86.175,2.71585058]
[1772141213334,2.65320221,86.196,86.171,2.71585058]
[1772141213534,3.3132125,86.18,86.153,11.60718102]
[1772141213735,2.65320221,86.169,86.144,2.71585058]
[1772141215843,2.65320221,86.159,86.137,2.71585058]
[1772141216137,2.65320221,86.149,86.125,2.71585058]
[1772141219041,2.65320221,86.149,86.127,2.71585058]
[1772141219228,29.0130907,86.168,86.11,3.4132125]
[1772141219229,2.65320221,86.147,86.122,2.71585058]
[1772141219937,46.40776984,86.193,86.122,2.71585058]
[1772141219938,2.65320221,86.154,86.122,2.71585058]
[1772141220113,2.65320221,86.169,86.131,2.71585058]
[1772141220527,2.65320221,86.159,86.131,2.71585058]
[1772141221241,2.65320221,86.159,86.133,2.71585058]
[1772141221616,2.65320221,86.164,86.133,2.71585058]
[1772141221938,14.25695718,86.179,86.151,2.71585058]
[1772141222115,2.65320221,86.178,86.151,2.71585058]
[1772141222314,11.60265649,86.188,86.151,2.71585058]
[1772141222518,2.65320221,86.187,86.151,2.71585058]
[1772141223851,2.65320221,86.187,86.153,2.71585058]
[1772141226541,2.65320221,86.187,86.155,2.71585058]
[1772141228838,2.65320221,86.187,86.156,11.60685268]
[1772141229142,2.65320221,86.202,86.171,2.71585058]
[1772141231744,2.65320221,86.202,86.173,2.79335301]
[1772141234545,2.65320221,86.202,86.175,2.79335301]
[1772141234733,2.78957127,86.208,86.175,2.79335301]
[1772141237848,2.78957127,86.208,86.177,2.79335301]
[1772141238849,2.78957127,86.208,86.179,2.79335301]
[1772141240253,11.59971696,86.209,86.179,2.79335301]
[1772141240254,3.31216216,86.22,86.179,2.79335301]
[1772141240431,2.78957127,86.213,86.181,2.79335301]
[1772141241750,2.78957127,86.213,86.18,3.31216216]
[1772141241751,2.78957127,86.213,86.183,2.79335301]
[1772141242755,2.78957127,86.222,86.191,2.79335301]
[1772141244750,2.78957127,86.222,86.193,2.79335301]
[1772141245856,11.59664644,86.232,86.201,2.79335301]
[1772141246062,2.78957127,86.236,86.201,2.79335301]
[1772141246557,2.78957127,86.234,86.201,2.79335301]
[1772141246754,2.78957127,86.234,86.174,58.0218021]
[1772141246755,2.78957127,86.209,86.176,2.79335301]
[1772141246937,2.78957127,86.199,86.166,2.79335301]
[1772141247138,2.78957127,86.199,86.171,2.79335301]
[1772141248753,2.78957127,86.199,86.172,11.60469758]
[1772141249056,2.78957127,86.199,86.173,2.79335301]
[1772141251057,2.78957127,86.199,86.175,2.79335301]
[1772141252261,2.78957127,86.199,86.176,11.60415893]
[1772141252463,2.78957127,86.199,86.177,2.79335301]
[1772141254857,2.78957127,86.199,86.178,11.60388962]
[1772141255063,2.78957127,86.199,86.178,14.39724263]
[1772141255361,2.78957127,86.199,86.179,2.79335301]
[1772141256959,2.78957127,86.199,86.181,2.69815031]
[1772141257162,2.68925445,86.207,86.181,2.69815031]
[1772141259660,2.68925445,86.207,86.18,40.61267114]
[1772141259661,2.68925445,86.207,86.183,2.52837379]
[1772141264054,2.68925445,86.207,86.185,2.52837379]
[1772141267556,2.51235377,86.217,86.187,2.52837379]
[1772141267756,2.51235377,86.222,86.187,2.52837379]
[1772141269256,2.51235377,86.222,86.186,11.60281252]
[1772141269257,2.51235377,86.233,86.201,2.52837379]
[1772141269674,2.51235377,86.231,86.203,2.52837379]
[1772141270669,2.51235377,86.244,86.211,2.52837379]
[1772141271776,2.51235377,86.244,86.213,2.52837379]
[1772141272075,2.51235377,86.249,86.213,2.52837379]
[1772141272267,2.51235377,86.249,86.221,2.52837379]
[1772141272463,2.51235377,86.263,86.221,2.52837379]
[1772141272663,11.77487154,86.36,86.241,2.52837379]
[1772141272664,2.51235377,86.269,86.241,2.52837379]
[1772141274259,2.51235377,86.269,86.243,2.52837379]
[1772141275574,2.51235377,86.267,86.237,2.52837379]
[1772141276281,2.51235377,86.267,86.239,2.52837379]
[1772141277375,2.51235377,86.267,86.23,3.31216216]
[1772141277376,2.51235377,86.265,86.234,2.52837379]
[1772141279174,3.51216216,86.27,86.241,2.52837379]
[1772141279175,0.2,86.27,86.241,2.52837379]
[1772141279367,0.2,86.27,86.243,2.52837379]
[1772141279368,2.71235377,86.27,86.243,2.52837379]
[1772141279673,2.51235377,86.268,86.242,11.5952784]
[1772141280086,2.51235377,86.268,86.238,14.12415542]
[1772141280780,2.51235377,86.268,86.238,2.52837379]